bitfinex-derivatives/quotes_ETHF0:USTF0_20240818
["timestamp","ask_amount","ask_price","bid_price","bid_amount"]
[1723947044227,0.00269855,2609.6,2609.5,9.82032608]
[1723947046016,0.00269855,2609.6,2609.5,6.61252608]
[1723947046220,0.00269855,2609.6,2609.5,9.82032608]
[1723947046419,0.00269855,2609.6,2609.5,8.86242608]
[1723947046619,0.00269855,2609.6,2609.5,3.55472608]
[1723947047421,0.00269855,2609.6,2609.5,7.38672608]
[1723947047620,0.00269855,2609.6,2609.5,3.55472608]
[1723947048826,0.00269855,2609.6,2609.5,0.00302608]
[1723947050120,1.10569855,2609.6,2609.5,0.00302608]
[1723947050321,6.41446855,2609.6,2609.5,0.00302608]
[1723947051230,5.45659855,2609.6,2609.5,0.00302608]
[1723947051429,1.62459855,2609.6,2609.5,0.00302608]
[1723947060532,2.58246855,2609.6,2609.5,0.00302608]
[1723947060727,6.41446855,2609.6,2609.5,0.00302608]
[1723947061534,2.58246855,2609.6,2609.5,0.00302608]
[1723947070942,6.41446855,2609.6,2609.5,0.00302608]
[1723947071330,0.95801,2609.2,2609.1,0.3706]
[1723947071540,2.06101,2609.2,2609.1,0.3706]
[1723947071744,1.103,2609.2,2609.1,0.3706]
[1723947072244,1.8317,2609.2,2609.1,0.37488187]
[1723947072942,0.3723,2609.2,2609.1,0.37488187]
[1723947073439,1.103,2609.3,2609.1,0.37488187]
[1723947074946,2.06098,2609.3,2609.1,0.37488187]
[1723947075946,1.103,2609.2,2609.1,0.37488187]
[1723947080139,2.06101,2609.2,2609.1,0.37488187]
[1723947081631,1.103,2609.2,2609.1,0.37488187]
[1723947085845,0.00269855,2609.6,2609.1,6.26872187]
[1723947086049,1.10569855,2609.6,2609.3,1.103]
[1723947086255,1.10569855,2609.6,2609.4,0.3509]
[1723947086444,1.103,2609.5,2609.4,0.3509]
[1723947099051,1.103,2609.5,2609.3,0.365]
[1723947104586,1.10569855,2609.6,2609.3,6.25797]
[1723947104754,1.10569855,2609.6,2609.3,3.42501455]
[1723947105659,1.10569855,2609.6,2609.3,1.468]
[1723947110855,1.10569855,2609.6,2609.3,2.46704455]
[1723947111367,1.10569855,2609.6,2609.3,1.468]
[1723947111670,1.10569855,2609.6,2609.3,2.46704455]
[1723947112964,4.3108,2609.4,2609.1,0.00428187]
[1723947113155,2.06101,2609.2,2608.5,0.99904455]
[1723947113356,0.95827,2608.5,2608.4,0.3783]
[1723947113763,0.95827,2608.5,2608.2,2.84241138]
[1723947113764,0.95831,2608.4,2608.2,0.3448]
[1723947113972,1.103,2608.3,2608.1,0.38524911]
[1723947114163,1.103,2608.3,2608.1,0.00856586]
[1723947118769,0.95838,2608.2,2608.1,0.00856586]
[1723947118957,1.32748,2608.2,2608.1,0.00856586]
[1723947119159,5.16188,2608.2,2608.1,0.00856586]
[1723947121361,10.31638,2608.2,2608.1,0.00856586]
[1723947121873,0.95854,2607.8,2607.5,3.2078]
[1723947122174,1.103,2607.6,2607.5,3.2078]
[1723947122770,1.10646508,2607.6,2607.5,3.2112016]
[1723947123471,1.10646508,2607.6,2607.5,0.0034016]
[1723947124071,0.00346508,2607.6,2607.5,0.0034016]
[1723947124279,0.00346508,2607.6,2607.5,3.8386016]
[1723947125666,0.00346508,2607.6,2607.5,0.0034016]
[1723947125870,1.10646508,2607.6,2607.5,0.0034016]
[1723947141490,1.45126508,2607.6,2607.5,0.0034016]
[1723947143578,1.45126508,2607.6,2607.5,3.2112016]
[1723947143579,0.00346508,2607.6,2607.5,3.2112016]
[1723947143780,0.95839,2608.2,2607.6,0.95859]
[1723947143977,1.103,2608.0,2607.9,3.2078]
[1723947144994,1.1065769,2608.0,2607.9,3.2078]
[1723947148392,2.0650269,2608.0,2607.9,3.2078]
[1723947148583,4.9409769,2608.0,2607.9,3.2078]
[1723947148782,1.1065769,2608.0,2607.9,3.2078]
[1723947149990,1.1065769,2608.0,2607.7,0.3742]
[1723947150191,1.1065769,2608.0,2607.8,3.2078]
[1723947150491,1.103,2607.9,2607.8,3.2078]
[1723947159193,1.1065769,2608.0,2607.8,3.2078]
[1723947159498,0.0035769,2608.0,2607.8,3.2078]
[1723947159702,0.0035769,2608.0,2607.8,7.0422]
[1723947159994,0.0035769,2608.0,2607.8,8.04124455]
[1723947160581,0.0035769,2608.0,2607.8,8.99974455]
[1723947161791,0.0035769,2608.0,2607.9,0.95849]
[1723947162289,0.0035769,2608.0,2607.9,4.79289]
[1723947164088,0.0035769,2608.0,2607.9,1.95753455]
[1723947164288,0.0035769,2608.0,2607.9,5.79193455]
[1723947164998,0.0035769,2608.0,2607.9,4.79289]
[1723947167197,0.0035769,2608.0,2607.9,8.00069]
[1723947167789,0.0035769,2608.0,2607.9,9.10369]
[1723947168100,0.96402911,2608.5,2608.4,0.95831]
[1723947168101,0.00574911,2608.5,2608.4,0.95831]
[1723947168300,0.00574911,2608.5,2608.4,8.69076295]
[1723947168502,4.4628,2609.3,2608.7,0.95817]
[1723947168503,5.191,2609.3,2608.7,0.95817]
[1723947168701,5.191,2609.3,2609.1,3.2078]
[1723947168702,1.103,2609.3,2609.1,3.2078]
[1723947168999,2.06464177,2609.3,2609.1,3.2078]
[1723947169999,0.95801,2609.2,2609.1,3.2078]
[1723947170197,2.06101,2609.2,2609.1,3.2078]
[1723947170405,2.06101,2609.2,2608.9,0.00574911]
[1723947170406,0.95807,2609.1,2608.9,0.00574911]
[1723947170700,1.103,2609.0,2608.9,0.00574911]
[1723947171104,4.9358,2609.0,2608.9,0.00574911]
[1723947171801,5.89389,2609.0,2608.9,0.00574911]
[1723947175204,10.89389,2609.0,2608.9,0.00574911]
[1723947176404,5.89389,2609.0,2608.9,0.00574911]
[1723947176897,10.89389,2609.0,2608.9,0.00574911]
[1723947178801,0.95823,2608.6,2608.1,1.103]
[1723947179111,1.103,2608.4,2608.1,1.103]
[1723947179310,1.103,2608.4,2608.2,0.3555]
[1723947180511,1.103,2608.4,2608.0,0.35624911]
[1723947180512,0.95841,2608.2,2608.0,0.00574911]
[1723947180702,1.103,2608.1,2608.0,0.00574911]
[1723947181001,2.06142,2608.1,2608.0,0.00574911]
[1723947181205,5.89582,2608.1,2608.0,0.00574911]
[1723947181402,4.9374,2608.1,2608.0,0.00574911]
[1723947183106,1.103,2608.2,2608.0,0.00574911]
[1723947184007,1.70268,2608.5,2608.0,0.00574911]
[1723947186004,0.95832,2608.4,2608.0,0.00574911]
[1723947188705,0.7444,2608.5,2608.0,0.00574911]
[1723947188706,0.95835,2608.3,2608.0,0.00574911]
[1723947189706,0.1543,2608.4,2608.0,0.00574911]
[1723947190010,1.11261,2608.4,2608.0,0.00574911]
[1723947192100,0.1543,2608.4,2608.0,0.00574911]
[1723947192714,1.11262,2608.4,2608.0,0.00574911]
[1723947194798,0.7444,2608.5,2608.0,0.00574911]
[1723947196008,1.70267,2608.5,2608.0,0.00574911]
[1723947197107,4.91047,2608.5,2608.0,0.00574911]
[1723947197406,4.91047,2608.5,2608.0,0.38534911]
[1723947197796,4.91047,2608.5,2608.1,0.3541]
[1723947198214,4.91047,2608.5,2608.2,0.3674]
[1723947199909,3.9522,2608.5,2608.2,0.3674]
[1723947200113,3.2078,2608.5,2608.2,0.3674]
[1723947201013,0.95825,2608.6,2608.2,0.3674]
[1723947201715,0.95827,2608.5,2608.2,0.3674]
[1723947202013,0.95831,2608.4,2608.2,0.3674]
[1723947202206,3.541,2608.4,2608.0,0.00574911]
[1723947202615,0.7367,2608.4,2608.0,0.00574911]
[1723947203011,1.69503,2608.4,2608.0,0.00574911]
[1723947203207,0.7367,2608.4,2608.0,0.00574911]
[1723947203407,0.3597,2608.4,2608.0,0.00574911]
[1723947205420,0.95828,2608.5,2608.0,0.00574911]
[1723947205912,1.104,2608.2,2608.0,0.00574911]
[1723947206311,1.104,2608.2,2608.0,3.84014911]
[1723947206509,1.104,2608.2,2608.1,0.3776]
[1723947206714,0.95828,2608.5,2608.1,0.3776]
[1723947206946,0.95828,2608.5,2608.2,0.3653]
[1723947207121,1.104,2608.3,2608.2,0.3653]
[1723947215423,1.104,2608.3,2608.0,0.00574911]
[1723947215629,1.104,2608.1,2608.0,0.00574911]
[1723947217411,1.9169,2608.0,2607.9,0.85296]
[1723947217611,0.9586,2607.6,2607.5,0.0034016]
[1723947217817,5.2704,2607.6,2607.5,0.0034016]
[1723947218123,9.1056,2607.6,2607.5,0.0034016]
[1723947219623,9.2601,2607.6,2607.5,0.0034016]
[1723947220021,10.8081,2607.6,2607.5,0.0034016]
[1723947220717,11.1509,2607.6,2607.5,0.0034016]
[1723947222525,11.1509,2607.6,2606.6,0.3493]
[1723947222526,0.95868,2607.4,2605.9,4.71183398]
[1723947222727,0.95868,2607.4,2606.3,0.3781]
[1723947222728,0.95894,2606.7,2606.3,0.3781]
[1723947223327,0.3487,2606.6,2606.3,0.3781]
[1723947223536,0.3487,2606.6,2606.3,0.38168911]
[1723947224037,3.5565,2606.6,2606.3,0.38168911]
[1723947224620,0.95904,2606.4,2606.3,0.00358911]
[1723947224818,0.95908,2606.3,2606.2,0.00574911]
[1723947225117,6.81888,2606.3,2606.2,0.00574911]
[1723947225327,10.65568,2606.3,2606.2,0.00574911]
[1723947225718,10.65568,2606.3,2606.2,0.01055404]
[1723947226831,9.6966,2606.3,2606.2,0.01055404]
[1723947227517,5.8598,2606.3,2606.2,0.01055404]
[1723947227718,6.81888,2606.3,2606.2,0.01055404]
[1723947228829,5.8598,2606.3,2606.2,0.01055404]
[1723947232125,6.81888,2606.3,2606.2,0.01055404]
[1723947232433,5.8598,2606.3,2606.2,0.01055404]
[1723947234331,6.81888,2606.3,2606.2,0.01055404]
[1723947234730,5.8598,2606.3,2606.2,0.01055404]
[1723947237525,2.652,2606.3,2606.2,0.01055404]
[1723947237726,5.8598,2606.3,2606.2,0.01055404]
[1723947238742,6.81888,2606.3,2606.2,0.01055404]
[1723947239340,5.8598,2606.3,2606.2,0.01055404]
[1723947239542,3.2078,2606.6,2606.2,3.84735404]
[1723947239749,3.2078,2606.6,2606.3,0.7137]
[1723947239931,4.16677,2606.6,2606.3,0.7137]
[1723947240230,0.95901,2606.5,2606.3,0.7137]
[1723947241138,3.5659,2606.6,2606.3,0.7137]
[1723947241331,4.52488,2606.6,2606.3,0.7137]
[1723947241735,3.2078,2606.6,2606.3,0.7137]
[1723947241942,3.2078,2606.6,2606.4,0.35]
[1723947242244,4.16677,2606.6,2606.4,0.35]
[1723947242541,3.2078,2606.6,2606.4,0.35]
[1723947243942,4.16677,2606.6,2606.4,0.35]
[1723947244135,3.2078,2606.6,2606.4,0.35]
[1723947246745,2.65485821,2606.7,2606.4,0.35]
[1723947246943,3.2078,2606.6,2606.4,0.35]
[1723947253938,1.105,2606.5,2606.4,0.35]
[1723947264649,4.16959821,2606.7,2606.4,4.1868]
[1723947264650,3.21065821,2606.7,2606.4,4.1868]
[1723947264860,0.00285821,2606.7,2606.6,0.95897]
[1723947265152,0.00285821,2606.7,2606.6,5.27177]
[1723947265456,1.105,2607.1,2606.7,0.9589]
[1723947265644,1.105,2607.1,2606.8,0.3773]
[1723947265845,1.105,2607.1,2606.8,8.67749109]
[1723947266054,1.105,2607.1,2606.9,4.1962]
[1723947266347,1.105,2607.1,2606.9,0.3602]
[1723947266546,1.105,2607.1,2606.9,4.1962]
[1723947266547,1.10833601,2607.1,2606.9,4.1962]
[1723947266748,0.00333601,2607.1,2606.9,4.1962]
[1723947266945,1.105,2607.0,2606.9,4.1962]
[1723947270449,0.00333601,2607.1,2606.9,4.1962]
[1723947270653,0.00333601,2607.1,2607.0,4.79482]
[1723947271160,0.00333601,2607.1,2607.0,9.79482]
[1723947274452,0.00333601,2607.1,2607.0,13.00262]
[1723947274868,0.00333601,2607.1,2607.0,9.79482]
[1723947276367,0.00333601,2607.1,2607.0,13.00262]
[1723947277967,0.00333601,2607.1,2607.0,5.95882]
[1723947278162,0.00333601,2607.1,2607.0,13.00262]
[1723947278563,0.00333601,2607.1,2607.0,4.79482]
[1723947278757,0.00333601,2607.1,2607.0,9.79482]
[1723947278970,0.00333601,2607.1,2607.0,4.79482]
[1723947279268,0.00333601,2607.1,2607.0,9.79482]
[1723947281073,0.00333601,2607.1,2607.0,13.00262]
[1723947284971,0.00333601,2607.1,2607.0,18.38006011]
[1723947285675,1.105,2607.5,2607.2,0.95871]
[1723947285970,1.105,2607.5,2607.3,0.7118]
[1723947286171,1.105,2607.5,2607.3,1.0886]
[1723947286768,1.10959347,2607.5,2607.3,1.0886]
[1723947288662,1.10959347,2607.5,2606.7,1.50354877]
[1723947288663,0.95877,2607.2,2606.7,3.2078]
[1723947288862,1.105,2606.8,2606.7,3.2078]
[1723947289068,1.105,2606.8,2606.7,7.0438]
[1723947289477,1.105,2606.8,2606.7,3.2078]
[1723947289672,1.105,2606.8,2606.6,0.3545]
[1723947289868,1.105,2606.8,2606.3,4.16686]
[1723947290068,0.95886,2606.9,2606.3,4.16686]
[1723947290069,1.105,2606.6,2606.3,4.16686]
[1723947290268,1.105,2606.6,2606.3,4.52136]
[1723947290571,1.105,2606.6,2606.3,1.31356]
[1723947294478,1.105,2606.6,2606.3,0.3545]
[1723947294777,0.3437,2606.5,2606.3,0.3545]
[1723947295003,1.105,2606.4,2606.3,0.3545]
[1723947295485,1.105,2606.4,2606.2,0.01055404]
[1723947299671,1.105,2606.4,2606.2,0.96966404]
[1723947300367,1.105,2606.4,2606.3,0.95908]
[1723947300572,0.3437,2606.5,2606.3,0.95908]
[1723947300977,0.3437,2606.5,2606.2,5.63795404]
[1723947301383,0.3437,2606.5,2606.3,0.95907]
[1723947302386,0.3437,2606.5,2606.2,2.43015404]
[1723947304076,1.105,2606.4,2606.2,0.01055404]
[1723947304276,2.06408,2606.3,2606.2,0.01055404]
[1723947304480,2.21618,2606.3,2606.2,0.01055404]
[1723947304677,6.05298,2606.3,2606.2,0.01055404]
[1723947308091,9.26078,2606.3,2606.2,0.01055404]
[1723947308277,8.3017,2606.3,2606.2,0.01055404]
[1723947309584,9.26078,2606.3,2606.2,0.01055404]
[1723947310279,8.3017,2606.3,2606.2,0.01055404]
[1723947310487,9.26078,2606.3,2606.2,0.01055404]
[1723947311889,5.42398,2606.3,2606.2,0.01055404]
[1723947312192,9.26078,2606.3,2606.2,0.01055404]
[1723947313090,8.3017,2606.3,2606.2,0.01055404]
[1723947313581,4.3128,2606.3,2606.2,0.01055404]
[1723947314885,1.105,2606.3,2606.2,0.01055404]
[1723947315588,4.16686,2606.4,2606.2,0.01055404]
[1723947315781,1.105,2606.3,2606.2,0.01055404]
[1723947317979,2.06408,2606.3,2606.2,0.01055404]
[1723947318185,1.105,2606.3,2606.2,0.01055404]
[1723947321196,5.90088,2606.3,2606.2,0.01055404]
[1723947325481,2.06408,2606.3,2606.2,0.01055404]
[1723947325887,5.90088,2606.3,2606.2,0.01055404]
[1723947336998,2.06408,2606.3,2606.2,0.01055404]
[1723947342407,5.90088,2606.3,2606.2,0.01055404]
[1723947344197,4.79588,2606.3,2606.2,0.01055404]
[1723947344399,9.10868,2606.3,2606.2,0.01055404]
[1723947345313,8.00368,2606.3,2606.2,0.01055404]
[1723947345500,9.10868,2606.3,2606.2,0.01055404]
[1723947349707,5.27188,2606.3,2606.2,0.01055404]
[1723947353717,3.2078,2606.3,2606.2,0.01055404]
[1723947353912,4.3128,2606.3,2606.2,0.01055404]
[1723947356109,1.105,2606.3,2606.2,0.01055404]
[1723947356407,4.3128,2606.3,2606.2,0.01055404]
[1723947356916,6.20388598,2607.3,2606.2,27.95693174]
[1723947357116,1.105,2606.9,2606.8,2.46798248]
[1723947357311,3.00067945,2607.5,2606.8,2.46798248]
[1723947357312,1.105,2607.1,2607.0,0.95881]
[1723947357612,1.105,2607.3,2607.2,0.95872]
[1723947357812,1.105,2607.3,2607.2,1.96352039]
[1723947358004,1.105,2607.3,2607.2,7.71645355]
[1723947358218,1.105,2607.3,2607.2,3.8352]
[1723947362521,1.105,2607.3,2607.2,4.79395]
[1723947364415,0.00459347,2607.5,2607.4,0.95867]
[1723947364915,0.00459347,2607.5,2607.4,9.79387]
[1723947366018,0.00459347,2607.5,2607.4,4.79387]
[1723947366919,0.00574911,2607.8,2607.4,9.9402]
[1723947367122,0.00574911,2607.8,2607.7,1.105]
[1723947367419,0.00574911,2607.8,2607.7,9.63457449]
[1723947367624,0.00574911,2607.8,2607.7,18.46897449]
[1723947367814,0.00574911,2607.8,2607.7,19.42753449]
[1723947368019,0.01033803,2607.8,2607.7,19.42753449]
[1723947369931,0.01033803,2607.8,2607.7,18.32253449]
[1723947371415,0.01033803,2607.8,2607.7,22.71376322]
[1723947373322,0.01033803,2607.8,2607.7,25.92156322]
[1723947373625,0.01033803,2607.8,2607.7,22.71376322]
[1723947374121,0.01033803,2607.8,2607.7,25.92156322]
[1723947376721,0.01033803,2607.8,2607.7,22.71376322]
[1723947377524,0.01033803,2607.8,2607.7,25.92156322]
[1723947378429,0.01033803,2607.8,2607.7,0.355]
[1723947379516,0.01033803,2607.8,2607.4,0.3695]
[1723947379723,0.35643803,2607.8,2607.4,0.7472]
[1723947380220,3.2078,2607.7,2606.9,3.2078]
[1723947380525,4.16639,2607.7,2607.1,9.42875501]
[1723947380726,0.95861,2607.6,2607.1,8.46999501]
[1723947381027,0.95861,2607.6,2607.1,0.3777]
[1723947382527,4.16638,2607.7,2607.1,1.33648]
[1723947382917,1.31497803,2607.8,2607.1,1.33648]
[1723947383122,4.52277803,2607.8,2607.1,1.33648]
[1723947384123,3.56423803,2607.8,2607.1,0.3777]
[1723947384333,0.35643803,2607.8,2607.1,0.3777]
[1723947384522,0.35643803,2607.8,2607.3,0.95869]
[1723947384926,0.35643803,2607.8,2607.2,0.95873]
[1723947385230,0.01033803,2607.8,2607.2,5.28388685]
[1723947387623,0.01033803,2607.8,2607.2,8.49168685]
[1723947390029,1.104,2607.7,2607.3,1.104]
[1723947397935,1.104,2607.6,2607.2,2.06273]
[1723947398239,1.104,2607.6,2607.1,0.3777]
[1723947398240,1.104,2607.4,2607.1,0.3777]
[1723947398639,0.3528,2607.3,2607.1,0.3777]
[1723947400539,0.95878,2607.1,2606.7,1.00480039]
[1723947400747,8.147,2607.2,2606.7,1.00480039]
[1723947400748,1.104,2606.8,2606.7,0.3513]
[1723947401037,4.31847,2607.2,2606.7,0.3513]
[1723947401038,1.104,2606.9,2606.7,0.3513]
[1723947401835,3.2078,2607.2,2606.8,4.94]
[1723947402039,3.2078,2607.2,2606.9,1.30093]
[1723947402242,3.2078,2607.2,2607.0,0.3643]
[1723947402634,3.2078,2607.2,2607.1,0.3513]
[1723947406645,0.3528,2607.3,2607.1,0.3513]
[1723947411943,0.3454,2607.2,2607.1,0.3513]
[1723947413636,0.3454,2607.2,2606.8,0.3675]
[1723947414045,0.3454,2607.2,2606.8,1.32639]
[1723947414849,0.3454,2607.2,2606.8,2.33119039]
[1723947415352,0.3454,2607.2,2606.8,1.32639]
[1723947415938,0.3454,2607.2,2606.8,2.33119039]
[1723947418748,0.3454,2607.2,2606.8,1.37230039]
[1723947418958,1.30415,2607.2,2606.8,0.3675]
[1723947419943,0.95878,2607.1,2606.8,0.3675]
[1723947420144,3.2078,2607.1,2606.5,1.00480039]
[1723947420353,3.2078,2607.1,2606.8,0.3743]
[1723947420650,0.95882,2607.0,2606.8,0.3743]
[1723947420850,0.3435,2606.9,2606.8,0.3743]
[1723947421852,0.3454,2607.2,2606.8,0.3743]
[1723947422153,0.6889,2607.2,2606.8,0.3743]
[1723947422653,1.64766,2607.2,2606.8,0.3743]
[1723947423850,1.105,2607.1,2606.8,0.3743]
[1723947435058,2.06379,2607.1,2606.8,0.3743]
[1723947435467,1.105,2607.0,2606.6,1.4498]
[1723947435651,1.4604,2607.0,2606.8,0.3503]
[1723947438756,1.105,2607.0,2606.8,0.3503]
[1723947442861,1.105,2607.1,2606.8,0.3503]
[1723947443066,1.105,2607.1,2606.8,0.7007]
[1723947443957,0.3435,2607.2,2606.9,1.105]
[1723947444265,0.3435,2607.2,2606.9,6.42144929]
[1723947444467,0.3435,2607.2,2607.0,0.3489]
[1723947445269,1.105,2607.3,2607.0,0.3489]
[1723947445764,1.105,2607.3,2607.0,2.45870039]
[1723947445966,0.3624,2607.4,2607.1,2.06378]
[1723947446466,0.3624,2607.4,2607.2,0.7126]
[1723947446762,1.4674,2607.4,2607.2,0.7126]
[1723947448163,1.4674,2607.4,2607.0,0.3489]
[1723947448164,2.42609,2607.4,2607.0,0.3489]
[1723947448471,1.105,2607.2,2607.1,0.3662]
[1723947449164,0.3624,2607.4,2607.1,0.3662]
[1723947449165,1.105,2607.3,2607.1,0.3662]
[1723947449559,1.105,2607.3,2607.2,0.3746]
[1723947449968,0.3624,2607.4,2607.2,4.2098]
[1723947450269,0.3624,2607.4,2607.2,0.3746]
[1723947451069,0.3624,2607.4,2607.2,1.37940039]
[1723947451572,0.3624,2607.4,2607.2,0.3746]
[1723947451863,0.3624,2607.4,2607.2,1.37940039]
[1723947452167,1.105,2607.3,2607.1,1.37100039]
[1723947453662,1.105,2607.2,2607.1,1.37100039]
[1723947453870,1.105,2607.2,2606.9,1.00480039]
[1723947454165,1.105,2607.2,2606.2,0.01055404]
[1723947454166,0.95886,2606.9,2606.2,0.01055404]
[1723947454367,1.105,2606.3,2606.2,0.01055404]
[1723947454770,2.06408,2606.3,2606.2,0.01055404]
[1723947456383,1.105,2606.3,2606.2,0.01055404]
[1723947458676,1.4676,2606.3,2606.2,0.01055404]
[1723947460177,1.105,2606.3,2606.2,0.01055404]
[1723947465784,2.06408,2606.3,2606.2,0.01055404]
[1723947466779,1.105,2606.3,2606.2,0.01055404]
[1723947467184,2.06408,2606.3,2606.2,0.01055404]
[1723947467383,1.105,2606.3,2606.2,0.01055404]
[1723947468194,2.06408,2606.3,2606.2,0.01055404]
[1723947468484,1.105,2606.3,2606.2,0.01055404]
[1723947494993,1.105,2606.5,2606.2,3.84735404]
[1723947495203,1.105,2606.6,2606.2,2.07465404]
[1723947496503,1.105,2606.6,2606.2,1.11555404]
[1723947497001,1.105,2606.5,2606.2,0.01055404]
[1723947499496,1.105,2606.5,2606.2,1.51775463]
[1723947499997,1.105,2606.5,2606.2,0.01055404]
[1723947499998,1.455,2606.5,2606.2,0.01055404]
[1723947500200,1.105,2606.5,2606.2,1.51775463]
[1723947501310,1.105,2606.3,2606.2,0.01055404]
[1723947501506,1.105,2606.3,2606.2,1.92915516]
[1723947501910,1.105,2606.3,2606.2,1.92918449]
[1723947503005,1.105,2606.3,2606.2,5.76598449]
[1723947503606,1.105,2606.3,2606.2,5.76593595]
[1723947504002,1.105,2606.3,2606.2,1.92913595]
[1723947504312,1.105,2606.3,2606.2,0.01055404]
[1723947505216,1.105,2606.3,2606.2,1.9291616]
[1723947505510,1.105,2606.3,2606.2,0.01055404]
[1723947505903,1.4483,2606.3,2606.2,0.01055404]
[1723947510616,6.24418,2606.3,2606.2,0.01055404]
[1723947511016,6.39638,2606.3,2606.2,0.00705524]
[1723947511717,11.39638,2606.3,2606.2,0.00705524]
[1723947512024,6.39638,2606.3,2606.2,0.00705524]
[1723947512216,6.39638,2606.3,2606.2,5.24e-06]
[1723947512217,11.39638,2606.3,2606.2,5.24e-06]
[1723947512410,15.35154598,2606.3,2606.2,5.24e-06]
[1723947512746,12.35546,2606.3,2606.2,5.24e-06]
[1723947513522,15.35761404,2606.3,2606.2,5.24e-06]
[1723947515611,11.25046,2606.3,2606.2,5.24e-06]
[1723947515927,12.35546,2606.3,2606.2,5.24e-06]
[1723947516517,6.39638,2606.3,2606.2,5.24e-06]
[1723947516717,11.39638,2606.3,2606.2,5.24e-06]
[1723947516903,6.39638,2606.3,2606.2,5.24e-06]
[1723947517110,11.39638,2606.3,2606.2,5.24e-06]
[1723947517309,6.39638,2606.3,2606.2,5.24e-06]
[1723947517510,11.39638,2606.3,2606.2,5.24e-06]
[1723947519721,14.39853404,2606.3,2606.2,5.24e-06]
[1723947519922,11.39638,2606.3,2606.2,5.24e-06]
[1723947523027,11.24418,2606.3,2606.2,5.24e-06]
[1723947524415,6.24418,2606.3,2606.2,5.24e-06]
[1723947528425,11.24418,2606.3,2606.2,5.24e-06]
[1723947528737,6.24418,2606.3,2606.2,5.24e-06]
[1723947529030,11.24418,2606.3,2606.2,5.24e-06]
[1723947530132,6.24418,2606.3,2606.2,5.24e-06]
[1723947530323,11.24418,2606.3,2606.2,5.24e-06]
[1723947532031,6.24418,2606.3,2606.2,5.24e-06]
[1723947540430,3.8368,2606.3,2606.2,5.24e-06]
[1723947540626,4.9418,2606.3,2606.2,5.24e-06]
[1723947541838,3.2078,2606.4,2606.2,3.83680524]
[1723947542033,3.2078,2606.4,2606.3,1.0778]
[1723947542034,4.3128,2606.4,2606.3,1.0778]
[1723947542432,4.3128,2606.4,2606.3,4.9146]
[1723947542838,4.3128,2606.4,2606.3,1.0778]
[1723947545335,1.105,2606.4,2606.3,1.0778]
[1723947546145,4.3128,2606.4,2606.3,1.0778]
[1723947546449,1.105,2606.4,2606.3,1.0778]
[1723947546636,4.3128,2606.4,2606.3,1.0778]
[1723947548250,3.2078,2606.7,2606.3,1.0778]
[1723947548444,1.105,2606.6,2606.3,1.0778]
[1723947548841,4.3128,2606.6,2606.3,1.0778]
[1723947550044,1.105,2606.6,2606.3,1.0778]
[1723947550241,4.3128,2606.6,2606.3,1.0778]
[1723947550442,1.105,2606.5,2606.3,1.0778]
[1723947551548,1.105,2606.4,2606.3,1.0778]
[1723947551947,1.105,2606.4,2606.3,4.9146]
[1723947554043,4.088,2606.8,2606.3,4.9146]
[1723947554044,4.3128,2606.5,2606.3,4.9146]
[1723947554237,1.105,2606.5,2606.3,1.0778]
[1723947554438,1.105,2606.5,2606.3,4.9146]
[1723947555049,3.2078,2606.9,2606.4,4.9418]
[1723947555351,1.105,2607.0,2606.7,1.68036]
[1723947555550,1.105,2607.0,2606.8,1.061]
[1723947555743,1.105,2607.0,2606.8,4.897]
[1723947555938,4.3128,2607.2,2606.9,3.836]
[1723947556140,1.105,2607.2,2606.8,1.061]
[1723947556637,4.6632,2607.4,2606.8,1.061]
[1723947556638,4.3128,2607.0,2606.8,1.061]
[1723947556839,1.105,2606.9,2606.8,1.061]
[1723947557756,0.57537,2606.7,2606.2,5.24e-06]
[1723947557942,0.57537,2606.7,2606.6,0.357]
[1723947558142,3.78317,2606.7,2606.6,0.357]
[1723947558645,0.57541,2606.5,2606.2,5.24e-06]
[1723947558843,3.2078,2606.7,2606.2,5.24e-06]
[1723947558844,1.105,2606.3,2606.2,5.24e-06]
[1723947560943,3.2078,2606.7,2606.2,4.94180524]
[1723947561144,1.105,2606.6,2606.2,1.10500524]
[1723947562253,0.57534,2606.8,2606.2,1.10500524]
[1723947562454,1.105,2606.7,2606.2,1.10500524]
[1723947563959,1.105,2606.6,2606.2,1.10500524]
[1723947564256,1.105,2606.6,2606.2,1.68047524]
[1723947564451,1.105,2606.6,2606.3,0.57544]
[1723947564646,1.105,2606.7,2606.4,1.4707]
[1723947564852,1.105,2606.7,2606.5,0.3634]
[1723947565047,1.105,2606.7,2606.5,0.7428]
[1723947565241,1.105,2606.7,2606.5,4.5796]
[1723947565445,3.2078,2607.0,2606.6,4.41216]
[1723947565642,1.105,2607.0,2606.5,2.42319]
[1723947566948,1.105,2607.0,2606.6,0.57537]
[1723947567457,1.105,2607.0,2606.6,1.68037]
[1723947568755,1.105,2607.0,2606.6,1.105]
[1723947569060,1.105,2606.8,2606.5,2.42319]
[1723947569455,1.105,2606.8,2606.6,3.836]
[1723947569861,1.105,2606.8,2606.7,3.836]
[1723947570050,1.105,2606.8,2606.6,3.836]
[1723947570358,1.105,2606.8,2606.5,6.25919]
[1723947570748,1.105,2606.8,2606.6,3.836]
[1723947571356,1.105,2606.8,2606.5,2.42319]
[1723947571663,1.105,2606.8,2606.5,5.51639]
[1723947574451,1.105,2606.8,2606.5,4.941]
[1723947575863,1.105,2606.8,2606.5,5.51639]
[1723947579553,1.105,2606.8,2606.6,0.57538]
[1723947579758,1.105,2606.8,2606.5,4.941]
[1723947580168,1.105,2606.8,2606.5,1.105]
[1723947580466,1.105,2606.8,2606.5,4.941]
[1723947580671,1.105,2606.8,2606.5,1.68039]
[1723947582976,1.105,2606.9,2606.7,3.2078]